bitfinex/quotes_SOLUSD_20251024
["timestamp","ask_amount","ask_price","bid_price","bid_amount"]
[1761298630440,36.61,192.66,192.63,3.30954209]
[1761298631036,36.61,192.66,192.62,50.0]
[1761298631037,0.67,192.65,192.62,50.0]
[1761298631337,0.67,192.65,192.61,2.58954209]
[1761298631837,0.67,192.65,192.61,3.24954209]
[1761298632040,5.86081038,192.65,192.61,3.24954209]
[1761298632426,41.13053257,192.66,192.62,53.24954209]
[1761298632748,35.94,192.66,192.63,2.58954209]
[1761298632934,35.94,192.66,192.64,3.24954209]
[1761298633848,35.94,192.66,192.64,53.24954209]
[1761298634627,35.94,192.66,192.65,2.58954209]
[1761298635456,35.94,192.66,192.64,53.24954209]
[1761298635945,35.94,192.66,192.65,3.24954209]
[1761298636156,0.1,192.73,192.66,50.0]
[1761298636448,0.1,192.73,192.71,52.58954209]
[1761298636449,0.82,192.73,192.71,52.58954209]
[1761298636625,0.82,192.73,192.71,2.58954209]
[1761298637451,6.00863345,192.73,192.71,2.58954209]
[1761298637947,6.00863345,192.73,192.72,2.58954209]
[1761298639330,5.28863345,192.73,192.72,2.58954209]
[1761298639646,0.1,192.73,192.72,3.24954209]
[1761298640828,0.1,192.73,192.72,2.58954209]
[1761298641549,0.1,192.73,192.72,3.24954209]
[1761298643550,0.1,192.73,192.72,2.58954209]
[1761298644456,0.1,192.73,192.72,3.24954209]
[1761298646061,0.82,192.73,192.71,2.58954209]
[1761298646358,0.82,192.73,192.72,3.24954209]
[1761298646359,0.1,192.73,192.72,3.24954209]
[1761298647951,0.1,192.73,192.72,8.43841714]
[1761298649342,0.1,192.73,192.72,58.43841714]
[1761298656762,0.1,192.73,192.72,57.50164104]
[1761298657467,0.1,192.73,192.72,93.40164104]
[1761298658752,0.1,192.73,192.72,92.74164104]
[1761298658947,0.8,192.73,192.71,50.0]
[1761298663751,5.98865948,192.73,192.67,59.5]
[1761298663955,5.98865948,192.73,192.69,1.65276599]
[1761298664157,5.28865948,192.73,192.69,1.65276599]
[1761298664473,0.65,192.72,192.69,1.65276599]
[1761298665356,0.65,192.72,192.68,1.65276599]
[1761298665558,0.65,192.72,192.67,1.65276599]
[1761298665782,5.18914431,192.71,192.65,56.84330633]
[1761298665978,1.65276599,192.7,192.64,1.65276599]
[1761298666154,2.30276599,192.7,192.63,56.84401732]
[1761298666359,0.65,192.69,192.64,1.65276599]
[1761298667062,2.30276599,192.69,192.63,1.65276599]
[1761298667581,0.65,192.68,192.63,1.65276599]
[1761298667782,5.19022162,192.67,192.63,1.65276599]
[1761298668164,10.97647521,192.73,192.66,51.65276599]
[1761298668370,0.65,192.72,192.69,1.65276599]
[1761298668570,0.65,192.72,192.68,1.65276599]
[1761298668758,0.65,192.72,192.69,2.37276599]
[1761298668960,0.65,192.72,192.69,1.65276599]
[1761298669279,0.65,192.72,192.67,1.65276599]
[1761298669581,0.65,192.72,192.66,1.65276599]
[1761298669894,5.18914431,192.71,192.63,41.09114685]
[1761298670181,11.52647521,192.7,192.65,1.65276599]
[1761298670557,0.65,192.69,192.63,5.19114685]
[1761298670757,36.65,192.69,192.64,1.65276599]
[1761298671156,0.65,192.68,192.64,1.65276599]
[1761298671778,0.65,192.68,192.64,2.37276599]
[1761298671984,36.0,192.69,192.66,1.65276599]
[1761298672278,41.83972482,192.69,192.66,1.65276599]
[1761298673579,0.65,192.68,192.65,1.65276599]
[1761298673783,41.83972482,192.69,192.65,2.37276599]
[1761298674589,41.83972482,192.69,192.65,0.72]
[1761298675762,41.18972482,192.69,192.65,0.72]
[1761298675960,5.84000511,192.68,192.65,2.37276599]
[1761298676181,5.19000511,192.68,192.65,2.37276599]
[1761298676570,5.19000511,192.68,192.65,1.65276599]
[1761298676882,5.84000511,192.68,192.65,1.65276599]
[1761298677086,0.65,192.67,192.65,1.65276599]
[1761298677460,0.65,192.67,192.63,5.91106606]
[1761298677665,0.65,192.67,192.65,1.65276599]
[1761298678389,5.19000511,192.68,192.65,1.65276599]
[1761298678587,103.65276599,192.72,192.63,5.19106606]
[1761298678588,102.0,192.72,192.67,1.65276599]
[1761298678772,36.0,192.72,192.67,50.0]
[1761298678970,0.65,192.71,192.68,1.65276599]
[1761298679170,0.65,192.71,192.65,55.91060849]
[1761298679396,0.65,192.71,192.67,1.65276599]
[1761298679890,5.83919205,192.71,192.65,50.72]
[1761298680067,5.83919205,192.71,192.66,1.65276599]
[1761298680261,0.65,192.7,192.66,1.65276599]
[1761298681364,5.18968291,192.69,192.65,1.65276599]
[1761298681792,0.65,192.68,192.65,1.65276599]
[1761298682590,5.84014198,192.68,192.65,1.65276599]
[1761298682987,0.65,192.67,192.65,1.65276599]
[1761298683588,0.65,192.67,192.64,1.65276599]
[1761298683785,0.65,192.67,192.63,55.91123266]
[1761298683990,0.65,192.67,192.64,1.65276599]
[1761298686505,5.19014198,192.68,192.64,2.37276599]
[1761298686701,5.84014198,192.68,192.64,2.37276599]
[1761298686998,5.84014198,192.68,192.65,0.72]
[1761298687502,5.84014198,192.68,192.65,1.65276599]
[1761298688371,5.84014198,192.68,192.63,1.65276599]
[1761298688372,0.65,192.67,192.63,1.65276599]
[1761298688568,0.65,192.67,192.62,2.37276599]
[1761298688807,0.65,192.67,192.63,1.65276599]
[1761298689476,5.19049102,192.66,192.63,1.65276599]
[1761298690078,5.84049102,192.66,192.63,1.65276599]
[1761298690998,18.16483288,192.68,192.63,1.65276599]
[1761298691204,0.65,192.65,192.63,1.65276599]
[1761298692006,5.19050237,192.66,192.63,1.65276599]
[1761298692217,5.19050237,192.66,192.64,0.72]
[1761298693101,5.19050237,192.66,192.62,0.72]
[1761298693405,5.87050237,192.66,192.63,1.65276599]
[1761298695086,5.19050237,192.66,192.62,2.37276599]
[1761298695283,5.87081687,192.65,192.62,2.37276599]
[1761298695701,5.87081687,192.65,192.62,1.65276599]
[1761298696005,5.87081687,192.65,192.62,2.37276599]
[1761298696299,5.87081687,192.65,192.62,0.72]
[1761298696508,5.87081687,192.65,192.62,2.37276599]
[1761298697181,5.19081687,192.65,192.62,2.37276599]
[1761298697685,5.87081687,192.65,192.62,2.37276599]
[1761298698001,5.19081687,192.65,192.62,2.37276599]
[1761298698496,5.87081687,192.65,192.62,1.65276599]
[1761298699096,5.19081687,192.65,192.62,2.37276599]
[1761298699297,5.19049102,192.66,192.61,55.91182832]
[1761298699484,0.68,192.65,192.62,1.65276599]
[1761298700106,0.68,192.65,192.62,2.37276599]
[1761298700790,0.68,192.65,192.63,51.65276599]
[1761298701808,41.17027118,192.67,192.64,0.72]
[1761298702103,41.17027118,192.67,192.64,2.37276599]
[1761298702493,5.19027118,192.67,192.65,2.37276599]
[1761298702903,5.18995225,192.68,192.65,2.37276599]
[1761298703103,5.18995225,192.68,192.64,1.65276599]
[1761298703408,5.18974162,192.69,192.65,51.65276599]
[1761298703704,5.86974162,192.69,192.65,52.37276599]
[1761298703907,0.68,192.68,192.65,52.37276599]
[1761298706703,5.19022162,192.67,192.63,52.37276599]
[1761298707090,0.68,192.66,192.63,52.37276599]
[1761298707286,0.68,192.66,192.63,50.0]
[1761298707489,0.68,192.66,192.61,1.65276599]
[1761298707683,1.65276599,192.65,192.6,50.0]
[1761298708013,1.65276599,192.64,192.57,2.37276599]
[1761298708209,35.98,192.63,192.57,2.37276599]
[1761298708514,0.7,192.63,192.57,2.37276599]
[1761298708698,5.89169703,192.62,192.58,1.65276599]
[1761298709205,5.89169703,192.62,192.58,2.31276599]
[1761298710916,0.7,192.61,192.58,2.31276599]
[1761298711098,5.19169703,192.62,192.58,2.31276599]
[1761298711298,5.89169703,192.62,192.58,2.31276599]
[1761298711501,5.19169703,192.62,192.58,2.31276599]
[1761298711716,0.7,192.61,192.58,2.31276599]
[1761298712297,5.89169703,192.62,192.58,2.31276599]
[1761298714702,5.89169703,192.62,192.59,50.0]
[1761298715010,5.19169703,192.62,192.58,0.66]
[1761298715218,0.67,192.61,192.58,2.31276599]
[1761298716202,0.67,192.61,192.58,52.31276599]
[1761298717005,0.67,192.61,192.59,1.65276599]
[1761298717512,35.96,192.63,192.6,51.65276599]
[1761298717701,35.96,192.63,192.6,52.31276599]
[1761298717906,5.1907936,192.65,192.62,1.65276599]
[1761298718109,5.1907936,192.65,192.61,0.66]
[1761298718301,5.8607936,192.65,192.62,1.65276599]
[1761298718617,5.1907936,192.65,192.61,2.31276599]
[1761298718914,5.8607936,192.65,192.61,3.24630879]
[1761298721816,5.8607936,192.65,192.62,50.0]
[1761298722015,5.1907936,192.65,192.62,52.58630879]
[1761298722222,143.17050818,192.66,192.63,3.25630879]
[1761298722414,41.17050818,192.66,192.63,3.25630879]
[1761298722924,0.67,192.65,192.6,50.0]
[1761298723111,41.84050818,192.66,192.61,2.58630879]
[1761298723324,41.84050818,192.66,192.61,3.25630879]
[1761298723614,0.67,192.65,192.62,0.67]
[1761298724994,5.1910299,192.64,192.62,0.67]
[1761298726814,5.1910299,192.64,192.61,2.58630879]
[1761298727122,5.1910299,192.64,192.61,3.25630879]
[1761298730312,5.8610299,192.64,192.61,3.25630879]
[1761298730507,5.8610299,192.64,192.61,0.67]
[1761298730717,5.8610299,192.64,192.61,3.25630879]
[1761298733942,5.8610299,192.64,192.62,2.58630879]
[1761298734133,5.86083519,192.65,192.62,53.25630879]
[1761298736718,5.86083519,192.65,192.62,3.25630879]
[1761298737030,5.86083519,192.65,192.62,0.67]
[1761298738817,5.86083519,192.65,192.62,3.25630879]
[1761298739018,5.86083519,192.65,192.62,0.67]
[1761298739229,5.86083519,192.65,192.62,3.25630879]
[1761298739736,5.86083519,192.65,192.62,53.25630879]
[1761298740317,5.19083519,192.65,192.62,52.58630879]
[1761298740519,5.19083519,192.65,192.63,0.67]
[1761298747654,5.19083519,192.65,192.63,3.25630879]
[1761298748162,5.86056325,192.66,192.63,3.25630879]
[1761298748940,5.86056325,192.66,192.63,2.58630879]
[1761298749258,5.19056325,192.66,192.64,53.25630879]
[1761298749648,5.19056325,192.66,192.64,0.67]
[1761298749847,41.13026,192.67,192.65,0.67]
[1761298750348,5.1900193,192.68,192.66,2.58630879]
[1761298750748,5.1900193,192.68,192.67,2.58630879]
[1761298751350,5.9100193,192.68,192.64,50.0]
[1761298751549,5.9100193,192.68,192.65,2.58630879]
[1761298751757,5.9100193,192.68,192.65,3.23630879]
[1761298753443,5.9100193,192.68,192.66,52.58630879]
[1761298753643,5.1900193,192.68,192.66,52.58630879]
[1761298754147,5.1900193,192.68,192.66,53.23630879]
[1761298754356,5.9100193,192.68,192.66,53.23630879]
[1761298755362,5.1900193,192.68,192.66,53.23630879]
[1761298755769,5.1900193,192.68,192.67,2.58630879]
[1761298756372,5.18945268,192.7,192.67,2.58630879]
[1761298756576,5.18945268,192.7,192.68,3.23630879]
[1761298757055,5.18945268,192.7,192.69,2.58630879]
[1761298757847,41.12920622,192.71,192.68,50.65]
[1761298758046,41.12920622,192.71,192.69,2.58630879]
[1761298758262,41.12920622,192.71,192.69,3.23630879]
[1761298758468,41.84920622,192.71,192.68,52.58630879]
[1761298758672,41.12920622,192.71,192.69,0.65]
[1761298758973,41.12920622,192.71,192.69,3.23630879]
[1761298759270,5.18920622,192.71,192.69,3.23630879]
[1761298760762,36.66,192.72,192.69,3.23630879]
[1761298760978,41.84894024,192.72,192.69,3.23630879]
[1761298762763,5.90894024,192.72,192.69,3.23630879]
[1761298762973,41.82894024,192.72,192.69,3.23630879]
[1761298763161,41.10894024,192.72,192.7,0.65]
[1761298763394,41.82894024,192.72,192.69,3.23630879]
[1761298764196,35.92,192.72,192.69,3.23630879]
[1761298764376,36.64,192.72,192.7,2.58630879]
[1761298765395,41.82895371,192.72,192.69,3.23630879]
[1761298765590,5.90895371,192.72,192.69,3.23630879]
[1761298765995,5.90895371,192.72,192.68,65.57591962]
[1761298765996,0.72,192.71,192.68,3.23630879]
[1761298766585,5.90921179,192.71,192.68,3.23630879]
[1761298768500,5.87942948,192.7,192.68,2.58630879]
[1761298768801,35.92,192.69,192.65,2.58630879]
[1761298768980,0.69,192.68,192.63,3.26630879]
[1761298769186,0.69,192.68,192.63,18.84546388]
[1761298769386,0.69,192.68,192.63,18.16546388]
[1761298769607,0.69,192.68,192.63,18.84546388]
[1761298769792,0.69,192.68,192.64,2.58630879]
[1761298770407,36.61,192.68,192.64,3.26630879]
[1761298771401,36.61,192.68,192.64,2.58630879]
[1761298771402,41.80016989,192.68,192.64,2.58630879]
[1761298771612,0.69,192.67,192.64,2.58630879]
[1761298771909,0.69,192.67,192.64,3.26630879]
[1761298772993,5.88023889,192.67,192.64,3.26630879]
[1761298773511,5.19023889,192.67,192.65,0.68]
[1761298778892,0.69,192.67,192.64,52.33471556]
[1761298779091,0.69,192.67,192.64,50.68]
[1761298779403,0.69,192.67,192.64,52.33471556]
[1761298780002,5.88024276,192.67,192.64,52.33471556]
[1761298780310,5.88024276,192.67,192.65,0.68]
[1761298780613,5.19024276,192.67,192.65,0.68]
[1761298781301,5.18995225,192.68,192.65,0.68]
[1761298781501,5.88995225,192.68,192.65,0.68]
[1761298781713,5.88995225,192.68,192.65,2.33471556]
[1761298781901,35.92,192.68,192.66,1.65471556]
[1761298782094,35.92,192.68,192.67,1.65471556]
[1761298782296,5.18945993,192.7,192.67,2.31471556]
[1761298782611,5.88945993,192.7,192.68,1.65471556]
[1761298782993,5.88945993,192.7,192.67,2.31471556]
[1761298786006,5.88945993,192.7,192.68,1.65471556]
[1761298786541,5.18920595,192.71,192.69,0.66]
[1761298786817,5.18920595,192.71,192.69,2.31471556]
[1761298787121,5.18920595,192.71,192.69,0.66]
[1761298787308,5.88920595,192.71,192.68,2.31471556]
[1761298788726,41.80920595,192.71,192.68,2.31471556]
[1761298791419,0.7,192.7,192.68,1.65471556]
[1761298791917,5.88952832,192.7,192.67,1.65471556]
[1761298792432,0.7,192.69,192.67,1.65471556]
[1761298792642,0.7,192.69,192.66,15.57672836]
[1761298792845,1.65471556,192.67,192.6,0.66]
[1761298793137,37.57471556,192.66,192.6,2.31471556]
[1761298793512,5.89076044,192.65,192.6,2.31471556]
[1761298794041,5.89076044,192.65,192.61,1.65471556]
[1761298794234,5.89076044,192.65,192.61,2.31471556]
[1761298794733,5.19076044,192.65,192.62,0.66]
[1761298795108,5.89076044,192.65,192.62,2.31471556]
[1761298795319,5.89039085,192.67,192.63,1.65471556]
[1761298795518,35.92,192.66,192.63,2.31471556]
[1761298795821,36.62,192.66,192.63,2.31471556]
[1761298796723,36.62,192.66,192.63,0.66]
[1761298796929,36.62,192.66,192.63,2.31471556]
[1761298797512,0.7,192.66,192.63,2.31471556]
[1761298798332,41.11043726,192.67,192.63,1.65471556]
[1761298798534,41.81043726,192.67,192.64,0.66]
[1761298798837,36.62,192.67,192.64,50.66]
[1761298799009,5.18997116,192.68,192.65,1.65471556]
[1761298799208,41.10997116,192.68,192.65,2.31471556]
[1761298799422,41.10997116,192.68,192.66,2.31471556]
[1761298800523,41.10997116,192.68,192.64,50.66]
[1761298800843,0.7,192.67,192.65,1.65471556]
[1761298801742,5.19036517,192.67,192.65,1.65471556]
[1761298802746,41.8099628,192.68,192.65,2.31471556]
[1761298802946,41.1099628,192.68,192.64,50.0]
[1761298803246,41.1099628,192.68,192.65,0.66]
[1761298805729,35.92,192.68,192.65,0.66]
[1761298805935,35.92,192.68,192.66,50.0]
[1761298806337,35.92,192.68,192.66,50.66]
[1761298806850,41.10999767,192.68,192.66,0.66]
[1761298808474,115.67224541,192.72,192.66,50.66]
[1761298808754,63.98914431,192.71,192.69,1.65471556]
[1761298809118,64.68914431,192.71,192.68,1.65471556]
[1761298809652,35.92,192.71,192.69,1.65471556]
[1761298809951,35.92,192.71,192.69,2.31471556]
[1761298811351,35.92,192.71,192.69,1.65471556]
[1761298811553,35.92,192.71,192.7,2.33471556]
[1761298811747,35.92,192.71,192.7,52.33471556]
[1761298815554,35.92,192.71,192.7,51.65471556]
[1761298815739,41.10889637,192.72,192.7,52.33471556]
[1761298817035,41.10889637,192.72,192.71,1.65471556]
[1761298817755,35.92,192.72,192.71,2.33471556]
[1761298817930,35.92,192.72,192.7,50.0]
[1761298818234,35.92,192.72,192.7,52.33471556]
[1761298818948,41.10894347,192.72,192.7,52.33471556]
[1761298819252,41.75894347,192.72,192.69,1.65471556]
[1761298819438,0.65,192.71,192.69,1.65471556]
[1761298820552,0.65,192.71,192.68,51.65471556]
[1761298820755,0.65,192.71,192.68,52.33471556]
[1761298821355,5.83924239,192.71,192.68,52.33471556]
[1761298821538,5.83924239,192.71,192.69,1.65471556]
[1761298822465,0.65,192.7,192.67,1.65471556]
[1761298822668,5.18924239,192.71,192.67,2.33471556]
[1761298822860,35.92,192.7,192.67,2.33471556]
[1761298823242,36.57,192.7,192.67,2.33471556]
[1761298823546,35.92,192.7,192.67,1.65471556]
[1761298823767,35.92,192.7,192.68,0.68]
[1761298824362,35.92,192.7,192.67,1.65471556]
[1761298824670,36.57,192.7,192.67,2.33471556]
[1761298825258,35.92,192.7,192.67,2.33471556]
[1761298825563,35.92,192.7,192.68,0.68]
[1761298826341,35.92,192.7,192.68,50.68]
[1761298826663,35.92,192.7,192.68,51.65471556]
[1761298827562,0.65,192.69,192.64,0.68]
[1761298827868,0.65,192.69,192.64,1.65471556]
[1761298827869,35.92,192.68,192.64,1.65471556]
[1761298828045,35.92,192.68,192.64,2.33471556]
[1761298828244,0.72,192.67,192.64,2.33471556]
[1761298828458,0.72,192.67,192.64,1.65471556]
[1761298828768,0.72,192.67,192.64,2.32471556]
[1761298829562,0.72,192.67,192.64,1.65471556]
[1761298829867,5.91032483,192.67,192.63,51.65471556]
[1761298830341,0.72,192.66,192.63,52.32471556]
[1761298830655,5.91032483,192.67,192.64,0.67]
[1761298830872,0.72,192.66,192.63,52.32471556]
[1761298831067,0.72,192.66,192.61,0.67]
[1761298831388,2.37471556,192.66,192.61,0.67]
[1761298831881,0.72,192.65,192.61,2.32471556]
[1761298832581,5.9108984,192.65,192.61,2.32471556]
[1761298833978,0.72,192.65,192.61,2.32471556]
[1761298834186,0.72,192.64,192.61,2.32471556]
[1761298834713,0.72,192.64,192.6,2.32471556]
[1761298835384,0.72,192.64,192.6,51.65471556]
[1761298835582,0.72,192.64,192.61,0.67]
[1761298836094,5.91116669,192.64,192.61,0.67]
[1761298837789,5.91116669,192.64,192.61,2.32471556]
[1761298838491,5.91116669,192.64,192.6,50.67]
[1761298838694,5.91116669,192.64,192.6,52.32471556]
[1761298839579,5.91116669,192.64,192.6,2.32471556]
[1761298839895,5.91116669,192.64,192.6,52.32471556]
[1761298840781,5.91116669,192.64,192.6,53.25669628]
[1761298840966,5.91116669,192.64,192.6,3.25669628]
[1761298841297,5.91116669,192.64,192.6,53.25669628]
[1761298841797,5.19116669,192.64,192.6,3.25669628]
[1761298842096,0.67,192.63,192.6,0.67]
[1761298842301,0.67,192.63,192.6,2.58669628]
[1761298842479,0.67,192.63,192.59,3.25669628]
[1761298843372,5.86141715,192.63,192.59,3.25669628]
[1761298843691,0.67,192.62,192.6,50.0]
[1761298843884,5.86141715,192.63,192.6,53.25669628]
[1761298844595,5.86141715,192.63,192.6,3.25669628]
[1761298844910,5.86141715,192.63,192.6,53.25669628]
[1761298846905,5.86012489,192.68,192.62,52.58669628]
[1761298847083,0.67,192.67,192.64,2.58669628]
[1761298847586,0.67,192.67,192.62,50.67]
[1761298847787,0.67,192.67,192.64,2.58669628]
[1761298847976,5.86044033,192.67,192.64,2.58669628]
[1761298848795,0.67,192.66,192.64,2.58669628]
[1761298850473,5.8605197,192.66,192.63,3.25669628]
[1761298858600,0.67,192.65,192.63,2.58669628]
[1761298858791,0.67,192.65,192.62,2.58669628]
[1761298858982,0.67,192.65,192.62,3.25669628]
[1761298859494,5.86098327,192.65,192.62,3.25669628]
[1761298860096,0.67,192.64,192.62,2.58669628]
[1761298860401,0.67,192.64,192.61,18.8374696]
[1761298860704,5.8610462,192.64,192.6,52.58669628]
[1761298861001,5.8610462,192.64,192.6,58.44767955]
[1761298861199,5.8610462,192.64,192.6,57.77767955]
[1761298861378,5.8610462,192.64,192.61,0.67]
[1761298866306,18.83676541,192.66,192.62,2.58669628]
[1761298866491,0.67,192.65,192.61,53.25669628]
[1761298866692,0.67,192.65,192.62,0.67]
[1761298868716,18.16676541,192.66,192.62,0.67]
[1761298868891,18.83676541,192.66,192.62,0.67]
[1761298869092,5.86091627,192.65,192.62,0.67]
[1761298871511,18.16676541,192.66,192.62,3.25669628]
[1761298871708,18.85676541,192.66,192.62,3.25669628]
[1761298871892,0.69,192.65,192.62,3.25669628]
[1761298872302,2.58669628,192.63,192.56,102.58669628]
[1761298872616,2.58669628,192.61,192.56,0.67]
[1761298872790,2.58669628,192.6,192.54,39.17669628]
[1761298872989,2.58669628,192.6,192.54,0.67]
[1761298873190,0.69,192.59,192.54,0.67]
[1761298873407,3.27669628,192.59,192.54,0.67]
[1761298873590,5.19264721,192.58,192.54,0.67]
[1761298873917,5.19244535,192.59,192.55,52.58669628]
[1761298874421,0.69,192.58,192.55,53.25669628]
[1761298875613,5.88273289,192.58,192.55,53.25669628]
[1761298875806,5.19210799,192.6,192.55,52.58669628]
[1761298875993,5.88210799,192.6,192.55,52.58669628]
[1761298876194,0.69,192.59,192.55,53.25669628]
[1761298876897,5.88261591,192.59,192.55,53.25669628]
[1761298878292,5.88261591,192.59,192.55,52.58669628]
[1761298878592,5.88261591,192.59,192.55,3.25669628]
[1761298879214,5.88261591,192.59,192.55,2.58669628]
[1761298879406,5.88261591,192.59,192.55,3.25669628]
[1761298879608,0.69,192.59,192.55,3.25669628]
[1761298879910,0.69,192.59,192.55,53.25669628]
[1761298880115,0.69,192.59,192.56,0.67]
[1761298880417,0.69,192.59,192.55,52.58669628]
[1761298880613,0.69,192.59,192.56,0.67]
[1761298881119,5.88252028,192.59,192.55,3.25669628]
[1761298886118,0.69,192.59,192.56,0.67]
[1761298886417,5.88238648,192.59,192.56,0.67]
[1761298886600,0.69,192.58,192.53,18.8439459]
[1761298887108,0.69,192.58,192.53,3.25669628]
[1761298887503,0.69,192.58,192.54,0.67]
[1761298887703,5.19291686,192.57,192.54,0.67]
[1761298888325,5.86291686,192.57,192.54,0.67]
[1761298892320,0.67,192.56,192.52,8.47076344]
[1761298892821,0.67,192.56,192.53,0.69]
[1761298893125,0.67,192.57,192.53,0.69]
[1761298893428,5.86306251,192.57,192.53,0.69]
[1761298894205,5.86306251,192.57,192.53,53.27669628]
[1761298895309,0.67,192.56,192.53,53.27669628]
[1761298895822,0.67,192.56,192.53,52.58669628]
[1761298896125,5.19241689,192.59,192.56,50.0]
[1761298896314,5.19241689,192.59,192.56,52.58669628]
[1761298896514,5.19241689,192.59,192.57,0.69]
[1761298898736,5.86241689,192.59,192.56,50.69]
[1761298902543,5.81607626,192.59,192.56,50.69]
[1761298904449,5.19210799,192.6,192.58,51.65627776]
[1761298904617,5.19210799,192.6,192.57,0.71]
[1761298904618,5.87077347,192.65,192.6,50.0]
[1761298904817,5.87077347,192.65,192.62,50.0]
[1761298905019,5.87077347,192.65,192.61,1.65627776]
[1761298905343,5.19077347,192.65,192.6,50.0]
[1761298905550,0.68,192.64,192.61,1.65627776]
[1761298906041,5.19129938,192.63,192.61,1.65627776]
[1761298906634,5.19129938,192.63,192.6,50.71]
[1761298906833,5.19129938,192.63,192.61,1.65627776]
[1761298907530,5.19129938,192.63,192.61,2.36627776]
[1761298907730,5.87076044,192.65,192.61,1.65627776]
[1761298907930,5.87076044,192.65,192.62,0.71]
[1761298908145,5.87076044,192.65,192.61,1.65627776]
[1761298908146,5.19076044,192.65,192.61,2.36627776]
[1761298908340,0.68,192.64,192.61,2.36627776]
[1761298909048,0.68,192.64,192.61,0.71]
[1761298909349,0.68,192.64,192.61,1.65627776]
[1761298909755,5.19129938,192.63,192.61,1.65627776]
[1761298910548,5.87129938,192.63,192.61,1.65627776]
[1761298911149,5.87129938,192.63,192.6,50.71]
[1761298911150,2.33627776,192.62,192.58,50.0]
[1761298911541,1.65627776,192.59,192.52,22.88]
[1761298911849,5.19372597,192.54,192.51,0.71]
[1761298912951,5.87372597,192.54,192.51,0.71]
[1761298914438,5.87372597,192.54,192.5,0.71]
[1761298915232,7.53000373,192.54,192.5,0.71]
[1761298915432,5.87372597,192.54,192.5,2.36627776]
[1761298915943,5.87372597,192.54,192.5,0.71]
[1761298916156,5.87372597,192.54,192.5,2.36627776]
[1761298916361,5.87372597,192.54,192.5,0.71]
[1761298916660,0.68,192.53,192.5,2.36627776]
[1761298916844,0.68,192.53,192.5,0.71]
[1761298917347,5.87419389,192.53,192.48,57.56162144]
[1761298917555,5.87419389,192.53,192.49,0.71]
[1761298918334,5.19419389,192.53,192.49,0.71]
[1761298918535,0.68,192.52,192.49,0.71]
[1761298919954,5.87443335,192.52,192.49,0.71]
[1761298920936,13.66385921,192.55,192.49,52.36627776]
[1761298921155,5.19376904,192.54,192.49,52.36627776]
[1761298921352,5.19376904,192.54,192.5,0.71]
[1761298921659,5.87376904,192.54,192.5,0.71]
[1761298922438,0.68,192.53,192.5,0.71]
[1761298924256,5.87402485,192.53,192.5,0.71]
[1761298924466,5.87402485,192.53,192.48,1.65627776]
[1761298924645,5.87402485,192.53,192.49,0.71]
[1761298926461,5.87402485,192.53,192.49,50.71]
[1761298926854,5.87402485,192.53,192.5,0.71]
[1761298928661,5.19402485,192.53,192.47,5.19556629]
[1761298928869,0.68,192.52,192.48,2.36627776]
[1761298929365,0.68,192.52,192.49,0.71]
[1761298930267,18.17731545,192.55,192.49,0.71]
[1761298930568,0.68,192.53,192.49,0.71]
[1761298932055,1.65627776,192.52,192.49,0.71]
[1761298932655,7.53074995,192.52,192.49,0.71]
[1761298933577,5.87447219,192.52,192.49,0.71]
[1761298933756,7.53074995,192.52,192.49,0.71]
[1761298934067,5.87447219,192.52,192.49,0.71]
[1761298934477,5.19447219,192.52,192.49,0.71]
[1761298935545,5.19447219,192.52,192.49,50.71]
[1761298936151,5.19447219,192.52,192.5,0.71]
[1761298938359,0.68,192.51,192.48,50.71]
[1761298938559,5.87447219,192.52,192.49,0.71]
[1761298940973,5.19447219,192.52,192.49,0.71]
[1761298941475,2.33627776,192.54,192.49,0.71]
[1761298941878,1.65627776,192.54,192.49,0.71]
[1761298942056,0.68,192.53,192.49,0.71]
[1761298942673,5.87412083,192.53,192.49,0.71]
[1761298943175,0.68,192.55,192.52,50.0]
[1761298943376,2.33627776,192.56,192.52,50.0]
[1761298943672,7.52946429,192.56,192.52,50.71]